[Event "Titled Tuesday Blitz April 11 Early 2023"]
[White "Palencia Morales, Wilson Guillermo"]
[Black "Dishman, Stephen"]
[WhiteFideId "4401859"]
[BlackFideId "403024"]
[WhiteElo "2139"]
[BlackElo "2204"]
[Result "0-1"]
[Round "06"]
[TimeControl "180+2"]
[Date "2023.04.11"]
[WhiteClock "0:01:05"]
[BlackClock "0:00:14"]

1. e4 {[%clk 0:03:00]}  c5 {[%clk 0:02:59]} 2. c3 {[%clk 0:03:00]}  d5 {[%clk 0:02:58]} 3. exd5 {[%clk 0:02:59]}  Qxd5 {[%clk 0:02:59]} 4. d4 {[%clk 0:03:00]}  Nf6 {[%clk 0:02:59]} 5. Nf3 {[%clk 0:03:00]}  Bg4 {[%clk 0:02:59]} 6. Be2 {[%clk 0:03:00]}  e6 {[%clk 0:02:59]} 7. dxc5 {[%clk 0:02:59]}  Qxc5 {[%clk 0:02:57]} 8. Be3 {[%clk 0:02:58]}  Qc7 {[%clk 0:02:56]} 9. Na3 {[%clk 0:02:56]}  Bxa3 {[%clk 0:02:55]} 10. Qa4+ {[%clk 0:02:56]}  Nbd7 {[%clk 0:02:45]} 11. Qxa3 {[%clk 0:02:55]}  Nd5 {[%clk 0:02:38]} 12. O-O {[%clk 0:02:50]}  Nxe3 {[%clk 0:02:36]} 13. fxe3 {[%clk 0:02:51]}  Qc5 {[%clk 0:02:36]} 14. Qxc5 {[%clk 0:02:40]}  Nxc5 {[%clk 0:02:37]} 15. Rad1 {[%clk 0:02:35]}  O-O {[%clk 0:02:19]} 16. Rd4 {[%clk 0:02:35]}  Bh5 {[%clk 0:02:11]} 17. Rfd1 {[%clk 0:02:32]}  h6 {[%clk 0:02:04]} 18. Kf1 {[%clk 0:02:32]}  Rfc8 {[%clk 0:01:55]} 19. Ne5 {[%clk 0:02:31]}  Bxe2+ {[%clk 0:01:51]} 20. Kxe2 {[%clk 0:02:32]}  f6 {[%clk 0:01:46]} 21. Nd7 {[%clk 0:02:27]}  e5 {[%clk 0:01:37]} 22. Rb4 {[%clk 0:02:25]}  Nxd7 {[%clk 0:01:31]} 23. Rxd7 {[%clk 0:02:25]}  b6 {[%clk 0:01:28]} 24. h4 {[%clk 0:02:18]}  Rd8 {[%clk 0:01:25]} 25. Rc7 {[%clk 0:02:11]}  Rdc8 {[%clk 0:01:24]} 26. Rbc4 {[%clk 0:02:10]}  Rxc7 {[%clk 0:01:03]} 27. Rxc7 {[%clk 0:02:11]}  h5 {[%clk 0:01:00]} 28. Kf3 {[%clk 0:02:10]}  Kh7 {[%clk 0:00:59]} 29. b4 {[%clk 0:02:03]}  a5 {[%clk 0:00:50]} 30. b5 {[%clk 0:02:02]}  Rd8 {[%clk 0:00:49]} 31. Rc6 {[%clk 0:01:57]}  Rd2 {[%clk 0:00:46]} 32. Rxb6 {[%clk 0:01:57]}  Rxa2 {[%clk 0:00:46]} 33. Ra6 {[%clk 0:01:37]}  Rc2 {[%clk 0:00:45]} 34. Rxa5 {[%clk 0:01:35]}  Rxc3 {[%clk 0:00:45]} 35. Ra8 {[%clk 0:01:35]}  Rb3 {[%clk 0:00:45]} 36. Rb8 {[%clk 0:01:35]}  Rb4 {[%clk 0:00:40]} 37. g3 {[%clk 0:01:34]}  Kg6 {[%clk 0:00:35]} 38. b6 {[%clk 0:01:34]}  Kf5 {[%clk 0:00:33]} 39. b7 {[%clk 0:01:32]}  e4+ {[%clk 0:00:32]} 40. Ke2 {[%clk 0:01:21]}  Rb2+ {[%clk 0:00:32]} 41. Kd1 {[%clk 0:01:17]}  Kg4 {[%clk 0:00:30]} 42. Kc1 {[%clk 0:01:17]}  Rb6 {[%clk 0:00:25]} 43. Kc2 {[%clk 0:01:17]}  Kxg3 {[%clk 0:00:23]} 44. Kc3 {[%clk 0:01:17]}  Kxh4 {[%clk 0:00:22]} 45. Kd4 {[%clk 0:01:18]}  Rb4+ {[%clk 0:00:19]} 46. Kd5 {[%clk 0:01:18]}  g5 {[%clk 0:00:19]} 47. Kc6 {[%clk 0:01:18]}  g4 {[%clk 0:00:18]} 48. Rf8 {[%clk 0:01:14]}  g3 {[%clk 0:00:18]} 49. Rxf6 {[%clk 0:01:13]}  g2 {[%clk 0:00:17]} 50. Rg6 {[%clk 0:01:13]}  Kh3 {[%clk 0:00:16]} 51. Rg5 {[%clk 0:01:12]}  h4 {[%clk 0:00:16]} 52. Kd5 {[%clk 0:01:08]}  Rb5+ {[%clk 0:00:15]} 53. Kd4 {[%clk 0:01:07]}  Rxb7 {[%clk 0:00:15]} 54. Kxe4 {[%clk 0:01:07]}  Rb1 {[%clk 0:00:15]} 55. Kf3 {[%clk 0:01:04]}  g1=Q {[%clk 0:00:14]} 56. Rxg1 {[%clk 0:01:05]}  Rxg1 {[%clk 0:00:14]} 0-1


[Site "https://www.chess.com"]

[Event "Titled Tuesday Blitz April 11 Early 2023"]
[White "Kohler, Aran"]
[Black "Rodchenkov, Sergey D."]
[WhiteFideId "1002856"]
[BlackFideId "4168712"]
[WhiteElo "2292"]
[BlackElo "2277"]
[Result "0-1"]
[Round "06"]
[TimeControl "180+2"]
[Date "2023.04.11"]
[WhiteClock "0:00:02"]
[BlackClock "0:00:10"]

1. e4 {[%clk 0:02:59]}  c5 {[%clk 0:02:58]} 2. Nc3 {[%clk 0:02:59]}  d6 {[%clk 0:02:58]} 3. f4 {[%clk 0:03:00]}  g6 {[%clk 0:02:57]} 4. Nf3 {[%clk 0:03:00]}  Bg7 {[%clk 0:02:56]} 5. Bc4 {[%clk 0:02:59]}  e6 {[%clk 0:02:55]} 6. d3 {[%clk 0:02:55]}  a6 {[%clk 0:02:51]} 7. a4 {[%clk 0:02:55]}  Nc6 {[%clk 0:02:51]} 8. O-O {[%clk 0:02:55]}  Nge7 {[%clk 0:02:51]} 9. Qe1 {[%clk 0:02:50]}  O-O {[%clk 0:02:49]} 10. f5 {[%clk 0:02:48]}  exf5 {[%clk 0:02:45]} 11. Qh4 {[%clk 0:02:38]}  Nd4 {[%clk 0:02:29]} 12. Bg5 {[%clk 0:01:45]}  Nxf3+ {[%clk 0:02:23]} 13. Rxf3 {[%clk 0:01:45]}  Re8 {[%clk 0:02:22]} 14. Nd5 {[%clk 0:01:40]}  Bxb2 {[%clk 0:01:20]} 15. Bxe7 {[%clk 0:01:09]}  Rxe7 {[%clk 0:01:01]} 16. Nxe7+ {[%clk 0:01:09]}  Kg7 {[%clk 0:01:01]} 17. Nxf5+ {[%clk 0:00:40]}  Bxf5 {[%clk 0:00:59]} 18. Qxd8 {[%clk 0:00:38]}  Rxd8 {[%clk 0:00:58]} 19. Rb1 {[%clk 0:00:38]}  Bd4+ {[%clk 0:00:58]} 20. Kh1 {[%clk 0:00:39]}  Bc8 {[%clk 0:00:51]} 21. Rxf7+ {[%clk 0:00:37]}  Kh6 {[%clk 0:00:50]} 22. h4 {[%clk 0:00:32]}  Be5 {[%clk 0:00:42]} 23. g4 {[%clk 0:00:26]}  g5 {[%clk 0:00:29]} 24. hxg5+ {[%clk 0:00:19]}  Kxg5 {[%clk 0:00:28]} 25. Rxh7 {[%clk 0:00:20]}  Kxg4 {[%clk 0:00:27]} 26. Rg1+ {[%clk 0:00:20]}  Kf3 {[%clk 0:00:26]} 27. Rf1+ {[%clk 0:00:17]}  Ke3 {[%clk 0:00:22]} 28. Re1+ {[%clk 0:00:14]}  Kd2 {[%clk 0:00:22]} 29. Rg1 {[%clk 0:00:13]}  Kc3 {[%clk 0:00:22]} 30. Rg2 {[%clk 0:00:13]}  Bd7 {[%clk 0:00:20]} 31. a5 {[%clk 0:00:13]}  Bc6 {[%clk 0:00:19]} 32. Rh6 {[%clk 0:00:11]}  Kb4 {[%clk 0:00:19]} 33. Rgg6 {[%clk 0:00:09]}  Kxa5 {[%clk 0:00:18]} 34. Rh5 {[%clk 0:00:09]}  Kb4 {[%clk 0:00:18]} 35. Rg1 {[%clk 0:00:08]}  b5 {[%clk 0:00:18]} 36. Rb1+ {[%clk 0:00:08]}  Kc3 {[%clk 0:00:18]} 37. Bb3 {[%clk 0:00:08]}  a5 {[%clk 0:00:18]} 38. Re1 {[%clk 0:00:07]}  a4 {[%clk 0:00:18]} 39. Ba2 {[%clk 0:00:07]}  b4 {[%clk 0:00:18]} 40. Bc4 {[%clk 0:00:06]}  Rf8 {[%clk 0:00:15]} 41. Rg5 {[%clk 0:00:05]}  Rf2 {[%clk 0:00:15]} 42. Rg2 {[%clk 0:00:04]}  Rf3 {[%clk 0:00:15]} 43. Kg1 {[%clk 0:00:04]}  Bd4+ {[%clk 0:00:15]} 44. Kh2 {[%clk 0:00:04]}  Be5+ {[%clk 0:00:15]} 45. Kh1 {[%clk 0:00:04]}  Rh3+ {[%clk 0:00:14]} 46. Kg1 {[%clk 0:00:04]}  Bd4+ {[%clk 0:00:14]} 47. Kf1 {[%clk 0:00:03]}  Bd7 {[%clk 0:00:12]} 48. e5 {[%clk 0:00:02]}  dxe5 {[%clk 0:00:10]} 0-1


[Site "https://www.chess.com"]

[Event "Titled Tuesday Blitz April 11 Early 2023"]
[White "Omariev, Maksim"]
[Black "Kula, Robert"]
[WhiteFideId "4193423"]
[BlackFideId "1101218"]
[WhiteElo "2441"]
[BlackElo "2180"]
[Result "1-0"]
[Round "06"]
[TimeControl "180+2"]
[Date "2023.04.11"]
[WhiteClock "0:00:11"]
[BlackClock "0:00:38"]

1. e4 {[%clk 0:03:00]}  e5 {[%clk 0:02:59]} 2. Nf3 {[%clk 0:03:01]}  Nc6 {[%clk 0:02:59]} 3. Bb5 {[%clk 0:03:01]}  Nd4 {[%clk 0:02:59]} 4. Nxd4 {[%clk 0:03:01]}  exd4 {[%clk 0:02:59]} 5. O-O {[%clk 0:03:02]}  Bc5 {[%clk 0:02:59]} 6. d3 {[%clk 0:03:02]}  c6 {[%clk 0:03:00]} 7. Ba4 {[%clk 0:03:01]}  Ne7 {[%clk 0:02:59]} 8. f4 {[%clk 0:03:02]}  f5 {[%clk 0:02:57]} 9. Nd2 {[%clk 0:03:01]}  O-O {[%clk 0:02:56]} 10. Kh1 {[%clk 0:02:21]}  d5 {[%clk 0:02:54]} 11. e5 {[%clk 0:02:13]}  Be6 {[%clk 0:02:53]} 12. Qh5 {[%clk 0:01:56]}  a5 {[%clk 0:02:49]} 13. a3 {[%clk 0:01:56]}  b5 {[%clk 0:02:46]} 14. Bb3 {[%clk 0:01:57]}  a4 {[%clk 0:02:47]} 15. Ba2 {[%clk 0:01:57]}  Rb8 {[%clk 0:02:30]} 16. Nf3 {[%clk 0:01:56]}  h6 {[%clk 0:02:26]} 17. c3 {[%clk 0:01:38]}  dxc3 {[%clk 0:02:25]} 18. bxc3 {[%clk 0:01:39]}  Qe8 {[%clk 0:02:02]} 19. Qh4 {[%clk 0:01:25]}  Ng6 {[%clk 0:02:00]} 20. Qg3 {[%clk 0:01:24]}  Kh7 {[%clk 0:01:56]} 21. Nd4 {[%clk 0:00:56]}  Bxd4 {[%clk 0:01:43]} 22. cxd4 {[%clk 0:00:57]}  b4 {[%clk 0:01:44]} 23. axb4 {[%clk 0:00:54]}  Rxb4 {[%clk 0:01:43]} 24. Ba3 {[%clk 0:00:43]}  Rxd4 {[%clk 0:01:43]} 25. Bc5 {[%clk 0:00:44]}  Rxf4 {[%clk 0:01:32]} 26. Rxf4 {[%clk 0:00:42]}  Nxf4 {[%clk 0:01:32]} 27. Qxf4 {[%clk 0:00:43]}  Rg8 {[%clk 0:01:31]} 28. Qxa4 {[%clk 0:00:42]}  f4 {[%clk 0:01:26]} 29. Qd1 {[%clk 0:00:36]}  Qg6 {[%clk 0:01:24]} 30. d4 {[%clk 0:00:35]}  Qg5 {[%clk 0:01:18]} 31. Bb1+ {[%clk 0:00:34]}  Kh8 {[%clk 0:01:18]} 32. Bd3 {[%clk 0:00:34]}  Bg4 {[%clk 0:01:15]} 33. Be2 {[%clk 0:00:34]}  Bf5 {[%clk 0:01:15]} 34. Bf3 {[%clk 0:00:34]}  Be4 {[%clk 0:01:15]} 35. Qe2 {[%clk 0:00:33]}  Qg6 {[%clk 0:01:14]} 36. Re1 {[%clk 0:00:32]}  Bd3 {[%clk 0:01:13]} 37. Qa2 {[%clk 0:00:31]}  Rb8 {[%clk 0:01:10]} 38. Qa7 {[%clk 0:00:30]}  Re8 {[%clk 0:01:09]} 39. Qd7 {[%clk 0:00:29]}  Be4 {[%clk 0:01:08]} 40. Bxe4 {[%clk 0:00:24]}  dxe4 {[%clk 0:01:08]} 41. Rxe4 {[%clk 0:00:24]}  f3 {[%clk 0:01:07]} 42. gxf3 {[%clk 0:00:23]}  Ra8 {[%clk 0:01:07]} 43. Qg4 {[%clk 0:00:15]}  Ra1+ {[%clk 0:01:04]} 44. Kg2 {[%clk 0:00:16]}  Ra2+ {[%clk 0:01:05]} 45. Kg3 {[%clk 0:00:16]}  Qf7 {[%clk 0:01:03]} 46. e6 {[%clk 0:00:14]}  Qc7+ {[%clk 0:01:03]} 47. Qf4 {[%clk 0:00:14]}  Qa5 {[%clk 0:00:37]} 48. e7 {[%clk 0:00:10]}  Qa8 {[%clk 0:00:36]} 49. e8=Q+ {[%clk 0:00:09]}  Qxe8 {[%clk 0:00:36]} 50. Rxe8+ {[%clk 0:00:10]}  Kh7 {[%clk 0:00:37]} 51. Qf5+ {[%clk 0:00:10]}  g6 {[%clk 0:00:38]} 52. Qf7# {[%clk 0:00:11]} 1-0


[Site "https://www.chess.com"]

[Event "Titled Tuesday Blitz April 11 Early 2023"]
[White "Alahakoon, Isuru"]
[Black "Szyszylo, Rafal"]
[WhiteFideId "9900993"]
[BlackFideId "1109626"]
[WhiteElo "1995"]
[BlackElo "1951"]
[Result "1-0"]
[Round "06"]
[TimeControl "180+2"]
[Date "2023.04.11"]
[WhiteClock "0:02:04"]
[BlackClock "0:00:55"]

1. Nf3 {[%clk 0:03:00]}  g6 {[%clk 0:02:57]} 2. d4 {[%clk 0:02:59]}  d6 {[%clk 0:02:57]} 3. e4 {[%clk 0:02:59]}  Nf6 {[%clk 0:02:57]} 4. Nc3 {[%clk 0:02:59]}  Bg7 {[%clk 0:02:57]} 5. Bf4 {[%clk 0:02:59]}  c6 {[%clk 0:02:56]} 6. Qd2 {[%clk 0:03:00]}  h5 {[%clk 0:02:56]} 7. O-O-O {[%clk 0:03:00]}  b5 {[%clk 0:02:56]} 8. Bd3 {[%clk 0:02:53]}  b4 {[%clk 0:02:52]} 9. Ne2 {[%clk 0:02:52]}  a5 {[%clk 0:02:53]} 10. Rhe1 {[%clk 0:02:47]}  O-O {[%clk 0:02:35]} 11. Bh6 {[%clk 0:02:45]}  Bxh6 {[%clk 0:02:31]} 12. Qxh6 {[%clk 0:02:46]}  Ng4 {[%clk 0:02:31]} 13. Qf4 {[%clk 0:02:31]}  Nxf2 {[%clk 0:02:31]} 14. Rd2 {[%clk 0:02:32]}  Nxd3+ {[%clk 0:02:24]} 15. Rxd3 {[%clk 0:02:32]}  Ba6 {[%clk 0:02:20]} 16. Re3 {[%clk 0:02:32]}  Nd7 {[%clk 0:02:15]} 17. Qh6 {[%clk 0:02:30]}  Re8 {[%clk 0:02:03]} 18. Ng5 {[%clk 0:02:29]}  Nf8 {[%clk 0:02:04]} 19. Nf4 {[%clk 0:02:18]}  e5 {[%clk 0:02:02]} 20. Nxh5 {[%clk 0:02:15]}  gxh5 {[%clk 0:01:54]} 21. Rg3 {[%clk 0:02:15]}  h4 {[%clk 0:00:57]} 22. Ne6+ {[%clk 0:02:04]}  hxg3 {[%clk 0:00:55]} 23. Qg7# {[%clk 0:02:04]} 1-0


[Site "https://www.chess.com"]

[Event "Titled Tuesday Blitz April 11 Early 2023"]
[White "babbilator"]
[Black "Okike, David"]
[BlackFideId "8500134"]
[WhiteElo "2258"]
[BlackElo "2232"]
[Result "0-1"]
[Round "06"]
[TimeControl "180+2"]
[Date "2023.04.11"]
[WhiteClock "0:01:27"]
[BlackClock "0:02:12"]

1. e4 {[%clk 0:03:00]}  c5 {[%clk 0:02:55]} 2. Nc3 {[%clk 0:03:00]}  Nc6 {[%clk 0:02:54]} 3. Nf3 {[%clk 0:03:01]}  Nf6 {[%clk 0:02:53]} 4. Bb5 {[%clk 0:03:00]}  g6 {[%clk 0:02:46]} 5. e5 {[%clk 0:02:55]}  Ng4 {[%clk 0:02:46]} 6. Bxc6 {[%clk 0:02:47]}  dxc6 {[%clk 0:02:46]} 7. O-O {[%clk 0:02:47]}  Bg7 {[%clk 0:02:46]} 8. Re1 {[%clk 0:02:48]}  O-O {[%clk 0:02:45]} 9. d3 {[%clk 0:02:47]}  Nh6 {[%clk 0:02:41]} 10. Ne4 {[%clk 0:02:28]}  b6 {[%clk 0:02:40]} 11. Bf4 {[%clk 0:02:27]}  Nf5 {[%clk 0:02:40]} 12. Qd2 {[%clk 0:02:20]}  Nd4 {[%clk 0:02:38]} 13. Nxd4 {[%clk 0:02:12]}  Qxd4 {[%clk 0:02:37]} 14. c3 {[%clk 0:01:45]}  Qd5 {[%clk 0:02:37]} 15. c4 {[%clk 0:01:39]}  Qd4 {[%clk 0:02:20]} 16. Ng3 {[%clk 0:01:37]}  Rd8 {[%clk 0:02:16]} 17. Rad1 {[%clk 0:01:35]}  Bg4 {[%clk 0:02:15]} 18. Re4 {[%clk 0:01:33]}  Qd7 {[%clk 0:02:13]} 19. Bh6 {[%clk 0:01:27]}  Bxd1 {[%clk 0:02:12]} 0-1


[Site "https://www.chess.com"]

[Event "Titled Tuesday Blitz April 11 Early 2023"]
[White "Inepton_Fermion"]
[Black "lluiss"]
[WhiteElo "2370"]
[BlackElo "2256"]
[Result "1-0"]
[Round "06"]
[TimeControl "180+2"]
[Date "2023.04.11"]
[WhiteClock "0:00:42"]
[BlackClock "0:01:28"]

1. e4 {[%clk 0:03:00]}  c5 {[%clk 0:02:58]} 2. Nf3 {[%clk 0:03:01]}  d6 {[%clk 0:02:58]} 3. d4 {[%clk 0:03:01]}  cxd4 {[%clk 0:02:59]} 4. Nxd4 {[%clk 0:03:02]}  Nf6 {[%clk 0:02:59]} 5. Nc3 {[%clk 0:03:03]}  g6 {[%clk 0:02:59]} 6. Be3 {[%clk 0:03:03]}  Bg7 {[%clk 0:02:59]} 7. f3 {[%clk 0:03:02]}  O-O {[%clk 0:02:59]} 8. Qd2 {[%clk 0:03:02]}  Nc6 {[%clk 0:02:59]} 9. Bc4 {[%clk 0:02:58]}  Bd7 {[%clk 0:02:57]} 10. O-O-O {[%clk 0:02:57]}  Ne5 {[%clk 0:02:54]} 11. Bb3 {[%clk 0:02:57]}  Qa5 {[%clk 0:02:54]} 12. Kb1 {[%clk 0:02:53]}  Rfc8 {[%clk 0:02:53]} 13. h4 {[%clk 0:02:48]}  Rc5 {[%clk 0:02:52]} 14. h5 {[%clk 0:02:35]}  Nxh5 {[%clk 0:02:41]} 15. g4 {[%clk 0:02:36]}  Nf6 {[%clk 0:02:40]} 16. Bh6 {[%clk 0:02:32]}  Rxc3 {[%clk 0:02:40]} 17. bxc3 {[%clk 0:02:30]}  Rc8 {[%clk 0:02:32]} 18. Bxg7 {[%clk 0:02:21]}  Kxg7 {[%clk 0:02:32]} 19. Qh6+ {[%clk 0:01:07]}  Kg8 {[%clk 0:02:29]} 20. g5 {[%clk 0:01:08]}  Nh5 {[%clk 0:02:29]} 21. Rxh5 {[%clk 0:01:08]}  gxh5 {[%clk 0:02:29]} 22. Rh1 {[%clk 0:00:58]}  Rxc3 {[%clk 0:01:58]} 23. Qxh5 {[%clk 0:00:43]}  Qc5 {[%clk 0:01:28]} 24. Qxh7+ {[%clk 0:00:41]}  Kf8 {[%clk 0:01:28]} 25. Qh8# {[%clk 0:00:42]} 1-0


[Site "https://www.chess.com"]

[Event "Titled Tuesday Blitz April 11 Early 2023"]
[White "Alice, Mateus Felizardo Viageiro"]
[Black "Warchol, Kamil"]
[WhiteFideId "14800047"]
[BlackFideId "21858241"]
[WhiteElo "2189"]
[BlackElo "2017"]
[Result "0-1"]
[Round "06"]
[TimeControl "180+2"]
[Date "2023.04.11"]
[WhiteClock "0:00:17"]
[BlackClock "0:01:14"]

1. e4 {[%clk 0:01:06]}  c5 {[%clk 0:02:59]} 2. Nf3 {[%clk 0:01:05]}  e6 {[%clk 0:02:59]} 3. d4 {[%clk 0:01:04]}  cxd4 {[%clk 0:03:00]} 4. Nxd4 {[%clk 0:01:05]}  Nc6 {[%clk 0:03:00]} 5. Nb5 {[%clk 0:01:05]}  d6 {[%clk 0:02:58]} 6. Bf4 {[%clk 0:01:04]}  e5 {[%clk 0:02:42]} 7. Be3 {[%clk 0:01:04]}  Nf6 {[%clk 0:02:35]} 8. N1c3 {[%clk 0:01:04]}  a6 {[%clk 0:02:35]} 9. Na3 {[%clk 0:01:02]}  b5 {[%clk 0:02:35]} 10. Nd5 {[%clk 0:01:03]}  Nxd5 {[%clk 0:02:32]} 11. exd5 {[%clk 0:01:02]}  Ne7 {[%clk 0:02:25]} 12. c4 {[%clk 0:01:00]}  Bb7 {[%clk 0:01:51]} 13. Be2 {[%clk 0:00:47]}  bxc4 {[%clk 0:01:41]} 14. Bxc4 {[%clk 0:00:46]}  g6 {[%clk 0:01:40]} 15. O-O {[%clk 0:00:46]}  Bg7 {[%clk 0:01:39]} 16. Bg5 {[%clk 0:00:41]}  h6 {[%clk 0:01:36]} 17. Bh4 {[%clk 0:00:39]}  O-O {[%clk 0:01:33]} 18. Kh1 {[%clk 0:00:23]}  Qd7 {[%clk 0:01:32]} 19. Qb3 {[%clk 0:00:18]}  Rab8 {[%clk 0:01:30]} 20. Qd3 {[%clk 0:00:18]}  Rfe8 {[%clk 0:01:25]} 21. Bxa6 {[%clk 0:00:17]}  Bxa6 {[%clk 0:01:14]} 0-1


[Site "https://www.chess.com"]

[Event "Titled Tuesday Blitz April 11 Early 2023"]
[White "mjelcic"]
[Black "KorolDimitriy75"]
[WhiteElo "2242"]
[BlackElo "2357"]
[Result "1/2-1/2"]
[Round "06"]
[TimeControl "180+2"]
[Date "2023.04.11"]
[WhiteClock "0:01:30"]
[BlackClock "0:01:45"]

1. c4 {[%clk 0:03:00]}  c5 {[%clk 0:02:56]} 2. Nc3 {[%clk 0:02:59]}  g6 {[%clk 0:02:56]} 3. g3 {[%clk 0:02:56]}  Bg7 {[%clk 0:02:56]} 4. Bg2 {[%clk 0:02:56]}  Nc6 {[%clk 0:02:57]} 5. e4 {[%clk 0:02:55]}  e5 {[%clk 0:02:55]} 6. Nge2 {[%clk 0:02:55]}  Nge7 {[%clk 0:02:55]} 7. O-O {[%clk 0:02:55]}  O-O {[%clk 0:02:55]} 8. d3 {[%clk 0:02:54]}  d6 {[%clk 0:02:56]} 9. f4 {[%clk 0:02:54]}  f5 {[%clk 0:02:52]} 10. Be3 {[%clk 0:02:54]}  Be6 {[%clk 0:02:51]} 11. Nd5 {[%clk 0:02:49]}  Qd7 {[%clk 0:02:44]} 12. Qd2 {[%clk 0:02:31]}  Rae8 {[%clk 0:02:41]} 13. Rae1 {[%clk 0:02:31]}  Nd4 {[%clk 0:02:38]} 14. b3 {[%clk 0:02:25]}  b6 {[%clk 0:02:37]} 15. Kh1 {[%clk 0:02:20]}  Kh8 {[%clk 0:02:32]} 16. Nxe7 {[%clk 0:02:11]}  Rxe7 {[%clk 0:02:31]} 17. Nxd4 {[%clk 0:02:06]}  exd4 {[%clk 0:02:27]} 18. Bg1 {[%clk 0:02:03]}  Rfe8 {[%clk 0:02:28]} 19. Re2 {[%clk 0:01:32]}  fxe4 {[%clk 0:02:19]} 20. Rxe4 {[%clk 0:01:32]}  Bf5 {[%clk 0:02:08]} 21. Rxe7 {[%clk 0:01:32]}  Qxe7 {[%clk 0:02:08]} 22. Bf3 {[%clk 0:01:31]}  Bh3 {[%clk 0:02:00]} 23. Bg2 {[%clk 0:01:29]}  Bxg2+ {[%clk 0:01:59]} 24. Kxg2 {[%clk 0:01:30]}  Qe2+ {[%clk 0:01:56]} 25. Qxe2 {[%clk 0:01:29]}  Rxe2+ {[%clk 0:01:57]} 26. Rf2 {[%clk 0:01:30]}  Re1 {[%clk 0:01:55]} 27. Rf1 {[%clk 0:01:30]}  Re2+ {[%clk 0:01:53]} 28. Rf2 {[%clk 0:01:30]}  Re1 {[%clk 0:01:51]} 29. Rf1 {[%clk 0:01:30]}  Re2+ {[%clk 0:01:45]} 1/2-1/2


[Site "https://www.chess.com"]

[Event "Titled Tuesday Blitz April 11 Early 2023"]
[White "Balint, Vilmos"]
[Black "Sohier, Julien"]
[WhiteFideId "718050"]
[BlackFideId "645346"]
[WhiteElo "2034"]
[BlackElo "2209"]
[Result "0-1"]
[Round "06"]
[TimeControl "180+2"]
[Date "2023.04.11"]
[WhiteClock "0:01:07"]
[BlackClock "0:01:22"]

1. e3 {[%clk 0:01:11]}  e5 {[%clk 0:02:52]} 2. d4 {[%clk 0:01:12]}  exd4 {[%clk 0:02:49]} 3. exd4 {[%clk 0:01:13]}  d5 {[%clk 0:02:49]} 4. Nf3 {[%clk 0:01:14]}  Nf6 {[%clk 0:02:48]} 5. Bd3 {[%clk 0:01:15]}  Bd6 {[%clk 0:02:48]} 6. O-O {[%clk 0:01:16]}  O-O {[%clk 0:02:47]} 7. Re1 {[%clk 0:01:17]}  h6 {[%clk 0:02:47]} 8. h3 {[%clk 0:01:17]}  c6 {[%clk 0:02:46]} 9. c3 {[%clk 0:01:18]}  Re8 {[%clk 0:02:44]} 10. Be3 {[%clk 0:01:18]}  Nbd7 {[%clk 0:02:43]} 11. Nbd2 {[%clk 0:01:18]}  Nf8 {[%clk 0:02:41]} 12. Rc1 {[%clk 0:01:19]}  Ne6 {[%clk 0:02:36]} 13. Bb1 {[%clk 0:01:19]}  Nf4 {[%clk 0:02:33]} 14. Bxf4 {[%clk 0:01:19]}  Bxf4 {[%clk 0:02:32]} 15. Qc2 {[%clk 0:01:20]}  g6 {[%clk 0:02:28]} 16. Rxe8+ {[%clk 0:01:20]}  Qxe8 {[%clk 0:02:28]} 17. Re1 {[%clk 0:01:21]}  Qd8 {[%clk 0:02:25]} 18. Ne5 {[%clk 0:01:22]}  Bf5 {[%clk 0:02:24]} 19. Qc1 {[%clk 0:01:21]}  Bxb1 {[%clk 0:02:22]} 20. Qxb1 {[%clk 0:01:21]}  Bxd2 {[%clk 0:02:19]} 21. Re2 {[%clk 0:01:22]}  Bg5 {[%clk 0:02:14]} 22. Nxg6 {[%clk 0:01:22]}  Ne4 {[%clk 0:02:09]} 23. Ne5 {[%clk 0:01:17]}  Qf6 {[%clk 0:01:59]} 24. f3 {[%clk 0:01:17]}  Ng3 {[%clk 0:01:57]} 25. Re1 {[%clk 0:01:16]}  Re8 {[%clk 0:01:52]} 26. Ng4 {[%clk 0:01:17]}  Rxe1+ {[%clk 0:01:46]} 27. Qxe1 {[%clk 0:01:17]}  Qf4 {[%clk 0:01:45]} 28. Qe8+ {[%clk 0:01:17]}  Kg7 {[%clk 0:01:45]} 29. Qd7 {[%clk 0:01:10]}  h5 {[%clk 0:01:29]} 30. Ne5 {[%clk 0:01:07]}  h4 {[%clk 0:01:22]} 0-1


[Site "https://www.chess.com"]

[Event "Titled Tuesday Blitz April 11 Early 2023"]
[White "FuenfgegenWilly"]
[Black "Hoffmann, Asa"]
[BlackFideId "2001470"]
[WhiteElo "2226"]
[BlackElo "2117"]
[Result "0-1"]
[Round "06"]
[TimeControl "180+2"]
[Date "2023.04.11"]
[WhiteClock "0:00:42"]
[BlackClock "0:01:00"]

1. Nf3 {[%clk 0:02:58]}  d6 {[%clk 0:02:57]} 2. e3 {[%clk 0:02:58]}  e5 {[%clk 0:02:56]} 3. d4 {[%clk 0:02:59]}  e4 {[%clk 0:02:55]} 4. Nfd2 {[%clk 0:02:59]}  f5 {[%clk 0:02:54]} 5. g4 {[%clk 0:02:56]}  Nf6 {[%clk 0:02:51]} 6. g5 {[%clk 0:02:56]}  Nfd7 {[%clk 0:02:44]} 7. h4 {[%clk 0:02:55]}  c6 {[%clk 0:02:40]} 8. c4 {[%clk 0:02:55]}  d5 {[%clk 0:02:40]} 9. Nc3 {[%clk 0:02:54]}  Nb6 {[%clk 0:02:40]} 10. a4 {[%clk 0:02:53]}  a5 {[%clk 0:02:38]} 11. c5 {[%clk 0:02:50]}  N6d7 {[%clk 0:02:37]} 12. Rg1 {[%clk 0:02:47]}  Be7 {[%clk 0:02:36]} 13. Bh3 {[%clk 0:02:44]}  g6 {[%clk 0:02:34]} 14. Ne2 {[%clk 0:02:41]}  Na6 {[%clk 0:02:34]} 15. Nf4 {[%clk 0:02:39]}  Nf8 {[%clk 0:02:33]} 16. Nf1 {[%clk 0:02:35]}  Nb4 {[%clk 0:02:32]} 17. Bd2 {[%clk 0:02:34]}  Ne6 {[%clk 0:02:32]} 18. Bxb4 {[%clk 0:02:33]}  Nxf4 {[%clk 0:02:27]} 19. exf4 {[%clk 0:02:33]}  axb4 {[%clk 0:02:27]} 20. Ne3 {[%clk 0:02:34]}  Qa5 {[%clk 0:02:13]} 21. b3 {[%clk 0:02:33]}  b6 {[%clk 0:02:12]} 22. cxb6 {[%clk 0:02:31]}  Qxb6 {[%clk 0:02:11]} 23. h5 {[%clk 0:02:29]}  Ba6 {[%clk 0:02:08]} 24. Bf1 {[%clk 0:02:27]}  O-O-O {[%clk 0:02:01]} 25. a5 {[%clk 0:02:25]}  Qb7 {[%clk 0:02:00]} 26. Bxa6 {[%clk 0:02:23]}  Qxa6 {[%clk 0:02:00]} 27. Qe2 {[%clk 0:02:23]}  Kb7 {[%clk 0:01:55]} 28. Nc2 {[%clk 0:02:14]}  Bd6 {[%clk 0:01:52]} 29. Qd2 {[%clk 0:02:10]}  Qd3 {[%clk 0:01:46]} 30. a6+ {[%clk 0:02:00]}  Ka7 {[%clk 0:01:45]} 31. Ra4 {[%clk 0:01:46]}  Rb8 {[%clk 0:01:43]} 32. h6 {[%clk 0:01:26]}  Qxd2+ {[%clk 0:01:42]} 33. Kxd2 {[%clk 0:01:27]}  Bxf4+ {[%clk 0:01:42]} 34. Ne3 {[%clk 0:01:27]}  c5 {[%clk 0:01:37]} 35. Ke2 {[%clk 0:01:25]}  Bxe3 {[%clk 0:01:33]} 36. fxe3 {[%clk 0:01:24]}  c4 {[%clk 0:01:32]} 37. Rb1 {[%clk 0:01:22]}  c3 {[%clk 0:01:29]} 38. Kd1 {[%clk 0:01:20]}  Rhf8 {[%clk 0:01:24]} 39. Kc2 {[%clk 0:01:18]}  f4 {[%clk 0:01:24]} 40. Rf1 {[%clk 0:01:19]}  f3 {[%clk 0:01:23]} 41. Ra5 {[%clk 0:01:16]}  Rf5 {[%clk 0:01:23]} 42. Rg1 {[%clk 0:01:17]}  Rb6 {[%clk 0:01:19]} 43. Rc5 {[%clk 0:01:11]}  Rxa6 {[%clk 0:01:17]} 44. Rc7+ {[%clk 0:01:11]}  Kb6 {[%clk 0:01:17]} 45. Rxh7 {[%clk 0:01:12]}  Ra2+ {[%clk 0:01:16]} 46. Kb1 {[%clk 0:01:12]}  f2 {[%clk 0:01:07]} 47. Rf1 {[%clk 0:01:12]}  Re2 {[%clk 0:01:07]} 48. Rg7 {[%clk 0:00:40]}  Re1+ {[%clk 0:01:06]} 49. Kc2 {[%clk 0:00:41]}  Rxf1 {[%clk 0:01:05]} 50. Rxg6+ {[%clk 0:00:41]}  Kb5 {[%clk 0:01:04]} 51. h7 {[%clk 0:00:42]}  Rc1+ {[%clk 0:01:00]} 0-1


[Site "https://www.chess.com"]